bitfinex-derivatives/quotes_SOLF0:USTF0_20260202
["timestamp","ask_amount","ask_price","bid_price","bid_amount"]
[1770056000149,51.44734708,104.25,104.19,46.00807874]
[1770056001754,38.22594113,104.24,104.18,37.74421765]
[1770056002551,38.22594113,104.24,104.18,34.79184976]
[1770056003452,8.6414,104.23,104.18,34.79184976]
[1770056004449,43.91397324,104.24,104.18,37.74421765]
[1770056006454,8.6404,104.24,104.19,37.74421765]
[1770056006850,8.6404,104.24,104.19,34.79184976]
[1770056007150,43.91317324,104.25,104.19,37.74421765]
[1770056007350,35.27357324,104.27,104.21,37.74421765]
[1770056007554,35.27357324,104.29,104.23,37.74421765]
[1770056007854,43.90987324,104.29,104.23,37.74421765]
[1770056008055,35.27357324,104.29,104.23,34.79184976]
[1770056008256,38.22594113,104.29,104.23,34.79184976]
[1770056008755,43.90987324,104.29,104.23,46.38531765]
[1770056008951,43.90987324,104.29,104.24,34.79184976]
[1770056009151,134.326,104.31,104.24,34.79184976]
[1770056009152,46.86124113,104.31,104.24,37.74421765]
[1770056009548,43.90887324,104.31,104.25,2.95236789]
[1770056009751,8.6353,104.31,104.26,34.79184976]
[1770056010057,11.58786789,104.3,104.24,37.74421765]
[1770056010256,11.58786789,104.3,104.24,34.79184976]
[1770056010852,8.6355,104.3,104.24,34.79184976]
[1770056011557,8.6363,104.29,104.24,34.79184976]
[1770056012262,11.58866789,104.29,104.24,34.79184976]
[1770056012454,38.22594113,104.28,104.22,34.79184976]
[1770056012653,2.95236789,104.27,104.22,34.79184976]
[1770056012849,11.59116789,104.26,104.2,34.79184976]
[1770056013049,2.95236789,104.26,104.2,34.79184976]
[1770056014151,11.59186789,104.25,104.2,34.79184976]
[1770056014458,2.95236789,104.25,104.2,34.79184976]
[1770056014653,2.95236789,104.24,104.2,34.79184976]
[1770056015256,38.22594113,104.24,104.18,34.79184976]
[1770056016353,8.6415,104.23,104.18,34.79184976]
[1770056016759,141.75095523,104.26,104.18,43.43684976]
[1770056016960,35.27357324,104.26,104.18,34.79184976]
[1770056017362,35.27357324,104.25,104.18,43.43714976]
[1770056017761,8.6405,104.24,104.18,43.43714976]
[1770056017961,35.27357324,104.25,104.19,43.43634976]
[1770056018958,33.69400274,104.27,104.2,43.43544976]
[1770056019164,33.69400274,104.27,104.2,34.79184976]
[1770056020262,141.69785523,104.3,104.22,34.79184976]
[1770056020466,32.6474739,104.29,104.22,34.79184976]
[1770056021462,8.6371,104.28,104.22,43.43374976]
[1770056023061,487.6854,104.31,104.23,34.79184976]
[1770056023062,27.89941519,104.31,104.23,34.79184976]
[1770056023469,36.53421519,104.31,104.25,8.6393]
[1770056023662,36.53421519,104.31,104.25,43.43114976]
[1770056025262,36.53421519,104.31,104.23,34.79184976]
[1770056025263,26.11075862,104.3,104.23,34.79184976]
[1770056025468,26.11075862,104.29,104.23,34.79184976]
[1770056025865,8.638,104.27,104.21,43.43464976]
[1770056026067,8.638,104.27,104.21,34.79184976]
[1770056026068,25.16602773,104.27,104.21,34.79184976]
[1770056026766,25.16602773,104.29,104.21,34.79184976]
[1770056028275,33.80292773,104.29,104.23,8.6411]
[1770056028476,33.80292773,104.29,104.23,28.53551818]
[1770056029275,8.6371,104.28,104.23,19.89441818]
[1770056031575,8.638,104.27,104.23,19.89441818]
[1770056031878,19.384688,104.27,104.21,18.32784574]
[1770056033379,8.6389,104.26,104.21,18.32784574]
[1770056033881,19.384688,104.27,104.21,18.32784574]
[1770056034680,8.6388,104.26,104.21,18.32784574]
[1770056035882,8.6397,104.25,104.21,18.32784574]
[1770056038386,11.58546729,104.25,104.21,18.32784574]
[1770056039986,8.6397,104.25,104.21,18.32784574]
[1770056041178,8.6388,104.26,104.21,18.32784574]
[1770056041583,8.6388,104.26,104.22,18.32784574]
[1770056042589,2.94576729,104.25,104.2,18.32784574]
[1770056042790,2.94576729,104.23,104.18,18.32784574]
[1770056043090,8.75140555,104.21,104.15,18.32784574]
[1770056043288,2.94576729,104.2,104.15,18.32784574]
[1770056043483,11.69717284,104.2,104.15,18.32784574]
[1770056043688,2.94576729,104.19,104.13,18.32784574]
[1770056043884,8.75140555,104.22,104.16,21.27361303]
[1770056044390,8.01236572,104.25,104.17,18.32784574]
[1770056045191,7.07465949,104.23,104.17,18.32784574]
[1770056045692,8.6421,104.22,104.17,18.32784574]
[1770056046188,140.75981089,104.25,104.17,18.32784574]
[1770056046592,6.35841089,104.24,104.17,18.32784574]
[1770056046794,8.6413,104.23,104.17,26.97324574]
[1770056046993,8.6413,104.23,104.18,18.32784574]
[1770056050996,11.85285593,104.23,104.18,18.32784574]
[1770056051590,11.85285593,104.23,104.16,18.32784574]
[1770056051894,8.6421,104.22,104.16,18.32784574]
[1770056052600,8.6421,104.22,104.17,18.32784574]
[1770056052892,11.85285593,104.23,104.17,18.32784574]
[1770056053195,11.85285593,104.23,104.17,26.97374574]
[1770056053399,11.85285593,104.23,104.17,18.32784574]
[1770056054999,11.85285593,104.23,104.18,18.32784574]
[1770056055998,8.642,104.22,104.17,18.32784574]
[1770056057398,8.6429,104.21,104.17,18.32784574]
[1770056057599,3.21155593,104.23,104.17,18.32784574]
[1770056059299,8.6422,104.22,104.17,18.32784574]
[1770056060401,8.6422,104.22,104.17,26.97394574]
[1770056061500,8.6422,104.22,104.17,18.32784574]
[1770056061701,8.6429,104.21,104.17,18.32784574]
[1770056064202,8.6421,104.22,104.17,18.32784574]
[1770056064407,8.6421,104.22,104.17,26.97384574]
[1770056068404,8.6421,104.22,104.18,9.39370999]
[1770056071010,6.15876722,104.23,104.16,9.38064157]
[1770056071011,2.94721129,104.21,104.16,9.38064157]
[1770056071502,2.94721129,104.2,104.16,9.38064157]
[1770056072411,11.59131129,104.2,104.16,9.38064157]
[1770056075916,11.59131129,104.2,104.14,8.6485]
[1770056076114,11.59131129,104.2,104.14,17.95286551]
[1770056077010,11.59131129,104.2,104.15,9.30436551]
[1770056080520,8.6449,104.19,104.15,9.30436551]
[1770056082120,8.6454,104.18,104.15,9.30436551]
[1770056086926,2.94721129,104.2,104.15,9.30436551]
[1770056087224,2.94721129,104.21,104.15,9.30436551]
[1770056088420,8.6443,104.2,104.15,17.95196551]
[1770056088926,8.6443,104.2,104.15,9.30436551]
[1770056089617,11.59151129,104.2,104.15,9.30436551]
[1770056089821,11.59181129,104.19,104.15,9.30436551]
[1770056090018,134.4328,104.22,104.13,9.36166791]
[1770056090019,2.94721129,104.17,104.13,9.36166791]
[1770056091326,11.59401129,104.17,104.13,9.36166791]
[1770056093932,8.6468,104.17,104.13,9.36166791]
[1770056094327,11.59261129,104.18,104.13,9.36166791]
[1770056094630,2.94721129,104.17,104.12,8.6501]
[1770056095228,2.94721129,104.17,104.12,17.99859765]
[1770056095424,2.94721129,104.17,104.11,9.34849765]
[1770056096328,2.94721129,104.17,104.12,9.34849765]
[1770056096329,11.59351129,104.17,104.12,9.34849765]
[1770056096534,11.59699619,104.17,104.12,9.34849765]
[1770056097031,2.95069619,104.17,104.13,18.00050369]
[1770056097934,2.95069619,104.17,104.13,9.35120369]
[1770056100132,11.59719619,104.17,104.13,9.35120369]
[1770056101437,11.59619619,104.18,104.13,18.00060369]
[1770056102133,2.95069619,104.17,104.13,8.6494]
[1770056102339,11.59699619,104.17,104.13,9.41809335]
[1770056102541,2.95069619,104.16,104.11,9.41809335]
[1770056102735,2.95069619,104.15,104.11,9.41809335]
[1770056103335,134.4843,104.18,104.11,9.41809335]
[1770056103336,134.4725,104.19,104.12,9.4352305]
[1770056103535,2.95069619,104.17,104.12,9.4352305]
[1770056103736,2.95069619,104.18,104.12,9.4352305]
[1770056103934,11.59619619,104.18,104.12,18.0854305]
[1770056104132,2.95069619,104.17,104.12,18.0854305]
[1770056104339,2.95069619,104.17,104.12,9.4352305]
[1770056104538,11.59779619,104.16,104.12,9.4352305]
[1770056104734,11.59779619,104.16,104.11,9.4352305]
[1770056104939,2.95069619,104.15,104.11,9.4352305]
[1770056105840,11.59779619,104.16,104.11,9.4352305]
[1770056106941,8.6471,104.16,104.11,18.0863305]
[1770056107343,2.95069619,104.18,104.12,9.31203412]
[1770056108441,11.59609619,104.18,104.13,9.31203412]
[1770056111543,2.95069619,104.16,104.11,17.99324967]
[1770056111740,2.95069619,104.13,104.09,9.34234967]
[1770056111942,134.516,104.16,104.05,134.641]
[1770056111943,134.5373,104.14,104.05,9.34234967]
[1770056112147,2.95069619,104.1,104.05,9.34234967]
[1770056112440,134.5373,104.14,104.05,9.34234967]
[1770056112441,2.95069619,104.12,104.06,9.34234967]
[1770056112636,2.95069619,104.13,104.06,9.34234967]
[1770056113036,2.95069619,104.13,104.07,9.26538316]
[1770056113242,8.6495,104.13,104.08,9.26538316]
[1770056114143,11.60019619,104.13,104.08,9.26538316]
[1770056116846,8.6487,104.14,104.09,9.27739405]
[1770056117143,11.59939619,104.14,104.09,9.27739405]
[1770056120053,2.95069619,104.13,104.09,9.27739405]
[1770056124560,346.4,104.17,104.1,9.10644777]
[1770056124763,2.95069619,104.16,104.1,9.10644777]
[1770056124958,2.95069619,104.15,104.1,9.10644777]
[1770056126160,2.95069619,104.14,104.1,9.10644777]
[1770056127360,11.60009619,104.14,104.1,9.10644777]
[1770056127559,2.95069619,104.18,104.12,4.75530318]
[1770056128060,2.95069619,104.14,104.1,4.75530318]
[1770056128459,2.95069619,104.15,104.1,4.75530318]
[1770056128654,11.59869619,104.15,104.1,4.75530318]
[1770056130457,11.59869619,104.15,104.1,13.40730318]
[1770056130761,11.59869619,104.15,104.1,4.75530318]
[1770056130961,2.95069619,104.12,104.08,4.76397384]
[1770056131963,2.95069619,104.09,104.05,4.75846929]
[1770056132163,2.95069619,104.1,104.05,4.75846929]
[1770056132662,2.95069619,104.11,104.05,4.75846929]
[1770056133162,2.95069619,104.1,104.05,4.75846929]
[1770056134667,2.95069619,104.09,104.05,4.75846929]
[1770056135667,2.95069619,104.11,104.05,4.75846929]
[1770056136767,2.95069619,104.1,104.05,13.41436929]
[1770056136968,2.95069619,104.1,104.06,4.34855544]
[1770056137464,8.6504,104.12,104.07,4.33403404]
[1770056137671,2.95069619,104.11,104.07,4.33403404]
[1770056138568,134.5066,104.17,104.08,4.33403404]
[1770056138874,2.95069619,104.17,104.1,4.33403404]
[1770056139068,2.95069619,104.17,104.11,13.04758812]
[1770056140372,11.59709619,104.17,104.11,13.04758812]
[1770056140767,11.59799619,104.16,104.11,4.39648812]
[1770056140973,2.95069619,104.13,104.09,4.39648812]
[1770056141173,2.95069619,104.11,104.07,4.13832393]
[1770056141377,11.60289619,104.1,104.04,12.79472393]
[1770056141674,2.95069619,104.09,104.05,4.13832393]
[1770056143978,11.60289619,104.1,104.05,4.13832393]
[1770056144277,2.95069619,104.09,104.05,4.13832393]
[1770056146278,134.562,104.12,104.06,4.11424872]
[1770056146279,11.60149619,104.12,104.06,4.11424872]
[1770056146578,2.95069619,104.13,104.07,4.11424872]
[1770056148081,11.60129619,104.12,104.07,4.11424872]
[1770056150876,11.60129619,104.12,104.06,8.6545]
[1770056151181,11.60189619,104.11,104.06,4.09266144]
[1770056155482,11.60189619,104.11,104.06,12.74796144]
[1770056158384,11.60484786,104.11,104.06,12.74796144]
[1770056159185,11.60484786,104.11,104.07,4.19740119]
[1770056159485,2.95364786,104.12,104.08,4.19740119]
[1770056159679,2.95364786,104.13,104.08,4.19740119]
[1770056159879,2.95364786,104.12,104.08,4.19740119]
[1770056161080,2.95364786,104.11,104.08,4.19740119]
[1770056161287,2.95364786,104.12,104.08,4.19740119]
[1770056161682,11.60324786,104.13,104.08,4.19740119]
[1770056162184,2.95364786,104.11,104.07,12.83165153]
[1770056162978,11.60394786,104.12,104.07,12.83165153]
[1770056163787,8.6512,104.11,104.07,4.17735153]
[1770056166088,11.60484786,104.11,104.05,12.92968157]
[1770056166288,2.95364786,104.1,104.06,4.27378157]
[1770056167088,2.95364786,104.1,104.06,12.92898157]
[1770056167289,11.60484786,104.11,104.06,12.92898157]
[1770056168186,11.60404786,104.12,104.07,4.37453127]
[1770056168388,11.60404786,104.12,104.07,13.02893127]
[1770056169593,11.60404786,104.12,104.08,4.41065584]
[1770056171291,11.60404786,104.12,104.06,13.07325792]
[1770056171495,8.6512,104.11,104.06,13.07325792]
[1770056171897,11.60484786,104.11,104.06,4.41815792]
[1770056172096,2.95364786,104.1,104.06,4.41815792]
[1770056172495,2.95364786,104.11,104.06,4.41815792]
[1770056173397,2.95364786,104.11,104.06,13.07275792]
[1770056175899,2.95364786,104.09,104.04,4.46763069]
[1770056176095,2.95364786,104.08,104.04,4.46763069]
[1770056176402,2.95364786,104.07,104.04,4.46763069]
[1770056177304,11.60744786,104.08,104.04,4.46763069]
[1770056177502,134.5507,104.13,104.04,4.46763069]
[1770056177703,2.95364786,104.09,104.03,4.53101788]
[1770056177898,134.5625,104.12,104.03,7.48466574]
[1770056178206,2.95364786,104.1,104.04,4.53101788]
[1770056178602,11.60564786,104.1,104.05,4.53101788]
[1770056181406,134.5507,104.13,104.06,4.80031042]
[1770056181606,8.6505,104.12,104.06,4.80031042]
[1770056181906,2.95364786,104.13,104.07,4.80031042]
[1770056182111,2.95364786,104.1,104.05,4.80031042]
[1770056182313,2.95364786,104.1,104.03,386.17364786]
[1770056182314,2.95364786,104.09,104.03,4.80031042]
[1770056182507,11.60734786,104.08,104.03,4.80031042]
[1770056183105,134.6783,104.03,103.96,29.87330598]
[1770056183407,2.95364786,104.0,103.96,29.87330598]
[1770056183604,134.6978,104.02,103.96,29.87330598]
[1770056183803,2.95364786,104.02,103.96,29.87330598]
[1770056184006,2.95364786,104.03,103.96,29.87330598]
[1770056184202,137.61894786,104.04,103.96,29.87330598]
[1770056184403,134.6345,104.07,103.97,134.7522]
[1770056184608,134.6345,104.07,103.96,497.21240758]
[1770056185409,8.6556,104.06,103.98,55.94158287]
[1770056186009,8.6556,104.06,103.99,55.94158287]
[1770056186915,16.0467016,104.08,103.99,55.94158287]
[1770056187125,134.5952,104.1,103.99,55.94158287]
[1770056187126,134.5952,104.1,104.01,55.91307502]
[1770056188020,8.6531,104.09,104.01,55.91307502]
[1770056194119,8.6531,104.09,104.01,64.57227502]
[1770056195925,134.6259,104.07,103.99,55.96736539]
[1770056196124,134.6573,104.05,103.97,56.02898364]
[1770056196330,7.3926016,104.04,103.97,56.02898364]
[1770056196524,134.6943,104.02,103.95,56.02898364]
[1770056196727,7.3926016,104.02,103.95,56.02898364]
[1770056197132,7.3926016,104.03,103.95,56.02898364]
[1770056198028,8.6586,104.02,103.95,56.02898364]
[1770056198425,134.6923,104.02,103.95,56.02898364]
[1770056199226,8.6613,103.99,103.95,56.02898364]
[1770056199530,142.0737016,104.03,103.95,56.02898364]
[1770056199727,8.6603,104.0,103.95,56.02898364]
[1770056199929,134.6811,104.03,103.95,56.02898364]
[1770056200425,142.0838016,104.02,103.93,439.37885174]
[1770056200627,142.1116016,104.0,103.93,439.37885174]
[1770056201124,8.6612,103.99,103.92,2.77948636]
[1770056201321,134.7099,104.01,103.92,56.0189381]
[1770056201522,7.3926016,104.0,103.92,56.0189381]
[1770056201725,134.7099,104.01,103.92,56.0189381]
[1770056201924,350.1526016,104.02,103.93,56.01885174]
[1770056202323,8.6596,104.01,103.95,55.91864749]
[1770056202524,142.1097016,104.0,103.92,55.91873385]
[1770056202925,484.8441016,104.02,103.93,55.91864749]
[1770056203331,8.6597,104.01,103.95,55.91864749]
[1770056204831,16.0511016,104.03,103.95,64.58304749]
[1770056205034,7.3926016,104.03,103.95,64.58304749]
[1770056205328,8.6587,104.02,103.95,64.58304749]
[1770056205533,134.6489,104.06,103.96,55.99493851]
[1770056205534,477.8689,104.06,103.96,55.99493851]
[1770056205729,485.2615016,104.06,103.96,55.99493851]
[1770056207330,8.6574,104.04,103.97,8.6626]
[1770056207530,8.6574,104.04,103.97,64.60984367]
[1770056210036,8.6561,104.05,103.98,64.67596581]
[1770056212344,7.3926016,104.1,104.01,56.02161055]
[1770056212635,141.9589016,104.12,104.02,56.02161055]
[1770056212835,8.6519,104.11,104.04,64.67841055]
[1770056213642,8.6523,104.1,104.04,56.02161055]
[1770056214444,7.3926016,104.08,104.02,55.87605065]
[1770056215042,7.3926016,104.06,103.98,55.87605065]
[1770056215243,142.0323016,104.06,103.98,55.87605065]
[1770056215642,8.6581,104.03,103.98,55.87605065]
[1770056215843,8.6581,104.03,103.96,64.53955065]
[1770056216946,7.3926016,104.06,103.98,55.82066651]
[1770056218445,8.6561,104.06,103.99,8.661]
[1770056218840,8.6561,104.06,103.99,64.45234513]
[1770056219241,8.6543,104.08,104.0,55.79134513]
[1770056220449,8.6543,104.08,104.02,55.7867673]
[1770056223850,7.39441208,104.11,104.03,55.90934758]
[1770056224151,340.86,104.12,104.03,55.90934758]
[1770056224648,7.39441208,104.09,104.01,55.94140807]
[1770056226252,8.6537,104.08,104.01,64.60030807]
[1770056226550,7.39441208,104.09,104.01,64.60030807]
[1770056227448,8.6545,104.07,104.01,64.60030807]
[1770056229451,8.6545,104.07,104.01,55.94140807]
[1770056229754,142.02681208,104.07,103.99,56.07529189]
[1770056230647,134.643,104.06,103.99,56.07529189]
[1770056231056,8.657,104.04,103.99,56.07529189]
[1770056232254,8.6579,104.03,103.99,56.07529189]
[1770056234558,8.657,104.04,103.99,56.07529189]
[1770056236960,8.6562,104.05,103.99,56.07529189]
[1770056237462,8.6554,104.06,103.99,64.73629189]
[1770056237660,8.6554,104.06,103.99,56.07529189]
[1770056238157,8.6554,104.06,103.99,64.73629189]
[1770056239870,134.7317,103.99,103.92,8.636e-05]
[1770056240165,142.13681208,103.98,103.92,8.636e-05]
[1770056240964,8.6639,103.96,103.92,8.636e-05]
[1770056241561,8.6613,103.99,103.92,8.66678636]
[1770056241865,8.6613,103.99,103.93,47.09780548]
[1770056243668,8.6613,103.99,103.93,55.76390548]
[1770056244972,8.6599,104.01,103.94,55.81136176]
[1770056245174,7.39441208,104.03,103.94,47.14656176]
[1770056245772,435.84655968,104.05,103.96,55.80986176]
[1770056245972,441.56741208,104.05,103.96,55.80986176]
[1770056247163,142.04741208,104.05,103.96,55.80986176]
[1770056247363,8.6581,104.03,103.96,55.80986176]
[1770056247567,485.08741208,104.05,103.96,55.80986176]
[1770056247874,134.6689,104.04,103.96,47.14656176]
[1770056248875,485.08741208,104.05,103.96,47.14656176]
[1770056250077,350.43441208,104.05,103.96,47.14656176]
[1770056250978,7.39441208,104.05,103.96,47.14656176]
[1770056251177,8.6577,104.04,103.98,47.16268684]
[1770056251372,7.39441208,104.06,103.98,47.16268684]
[1770056251569,134.5556,104.13,104.01,134.6962]
[1770056251872,141.95001208,104.13,104.04,47.16268684]
[1770056252077,7.39441208,104.13,104.04,47.16268684]
[1770056252277,8.6503,104.12,104.06,47.13892174]
[1770056252871,8.6512,104.11,104.06,47.13892174]
[1770056253473,8.6523,104.1,104.04,47.13892174]
[1770056254079,8.6545,104.07,104.01,47.14499673]
[1770056254578,141.97271208,104.11,104.01,55.80439673]
[1770056254778,485.88341208,104.13,104.02,47.14499673]
[1770056255280,486.08341208,104.13,104.02,47.14499673]
[1770056255672,8.652,104.1,104.04,47.14499673]
[1770056256182,134.5875,104.1,104.04,47.14499673]
[1770056256481,8.6528,104.09,104.04,47.14499673]
[1770056262281,8.6537,104.08,104.04,47.14499673]
[1770056262481,141.99611208,104.09,104.04,47.14499673]
[1770056262682,134.5751,104.11,104.04,47.14499673]
[1770056262984,8.6524,104.1,104.04,47.14499673]
[1770056263279,141.95651208,104.12,104.04,47.14499673]
[1770056263280,7.39441208,104.12,104.04,47.14499673]
[1770056263486,8.6523,104.1,104.04,47.14499673]
[1770056263684,7.39441208,104.12,104.04,47.14499673]
[1770056265181,134.5452,104.14,104.04,47.14499673]
[1770056265378,8.6505,104.12,104.06,47.05390833]
[1770056268788,8.6512,104.11,104.06,47.05390833]
[1770056269086,134.5452,104.14,104.06,47.05390833]
[1770056269688,8.6504,104.12,104.06,47.05390833]
[1770056270184,141.91991208,104.15,104.06,47.05390833]
[1770056270989,134.5361,104.14,104.06,47.05390833]
[1770056272388,8.651,104.12,104.06,47.05390833]
[1770056273587,8.6513,104.11,104.06,47.05390833]
[1770056273988,7.39441208,104.13,104.06,47.05390833]
[1770056274591,134.5361,104.14,104.06,47.05390833]
[1770056275293,8.6504,104.12,104.06,47.05390833]
[1770056278494,8.6504,104.12,104.06,55.70900833]
[1770056278894,8.6512,104.11,104.06,47.05390833]
[1770056281900,8.652,104.1,104.06,47.05390833]
[1770056283800,134.5527,104.13,104.06,47.05390833]
[1770056283801,8.6513,104.11,104.06,47.05390833]
[1770056284394,8.652,104.1,104.06,47.05390833]
[1770056286401,11.60631033,104.1,104.06,47.05390833]
[1770056286901,8.652,104.1,104.06,47.05390833]
[1770056288294,11.60631033,104.1,104.06,47.05390833]
[1770056289204,11.60721033,104.09,104.06,47.05390833]
[1770056289403,11.60721033,104.09,104.04,47.1732826]
[1770056291404,8.6529,104.09,104.04,47.1732826]
[1770056294404,11.60721033,104.09,104.04,47.1732826]
[1770056297403,8.6529,104.09,104.04,47.1732826]
[1770056298407,11.60721033,104.09,104.04,47.1732826]
[1770056298906,134.5527,104.13,104.06,47.22181996]
[1770056299105,2.95431033,104.11,104.06,47.22181996]
[1770056300013,2.95431033,104.1,104.06,47.22181996]
[1770056300511,11.60551033,104.11,104.06,47.22181996]
[1770056302609,8.6505,104.12,104.06,55.87711996]
[1770056303112,8.6512,104.11,104.06,47.22181996]
[1770056303609,11.60471033,104.12,104.06,47.22181996]
[1770056303812,11.60471033,104.12,104.06,55.87711996]
[1770056304013,8.6504,104.12,104.06,55.87711996]
[1770056304217,2.95431033,104.13,104.06,50.17613029]
[1770056304507,2.95431033,104.12,104.06,47.22181996]
[1770056304713,2.95431033,104.11,104.06,47.22181996]
[1770056304912,2.95431033,104.1,104.06,47.22181996]
[1770056305513,2.95431033,104.08,104.03,47.25241865]
[1770056305809,8.6529,104.09,104.03,55.91011865]
[1770056306214,2.95431033,104.08,104.03,55.91011865]
[1770056308411,11.60631033,104.1,104.05,47.23610087]
[1770056308612,2.95431033,104.1,104.05,47.23610087]
[1770056312913,2.95431033,104.1,104.05,55.89200087]
[1770056313116,11.60481033,104.12,104.05,50.1904112]
[1770056313618,2.95431033,104.11,104.05,47.23610087]
[1770056314418,2.95431033,104.11,104.07,47.23381617]
[1770056314620,11.60481033,104.12,104.07,47.23381617]
[1770056321720,8.6505,104.12,104.07,47.23381617]
[1770056321928,8.6497,104.13,104.07,58.8425265]
[1770056322425,8.6488,104.14,104.09,47.37026477]
[1770056322817,151.767,104.19,104.09,50.3245751]
[1770056323018,134.4684,104.2,104.13,47.37026477]
[1770056323222,2.95431033,104.19,104.13,47.37026477]
[1770056323418,2.95431033,104.18,104.13,47.37026477]
[1770056324124,11.60071033,104.17,104.13,47.37026477]
[1770056325528,11.60131033,104.16,104.11,47.39387616]
[1770056329223,8.648,104.15,104.11,47.39387616]
[1770056329425,2.95431033,104.14,104.09,47.40324581]
[1770056329728,2.95431033,104.12,104.04,206.62]
[1770056329926,2.95431033,104.11,104.04,209.57431033]
[1770056330319,11.60541033,104.11,104.04,218.23111033]
[1770056331032,11.60631033,104.1,104.03,11.61191033]
[1770056331228,2.95431033,104.1,104.02,2.95431033]
[1770056331625,11.60721033,104.09,104.03,8.6577]
[1770056331831,11.60721033,104.09,104.04,39.0825331]
[1770056332329,8.6529,104.09,104.04,39.0825331]
[1770056332732,8.6539,104.08,104.04,39.0825331]
[1770056334124,141.96633344,104.11,104.04,39.0825331]
[1770056334324,141.99013344,104.09,104.02,38.96923694]
[1770056335332,8.6541,104.08,104.02,38.96923694]
[1770056336336,8.6524,104.1,104.02,38.96923694]
[1770056337133,343.82893344,104.12,104.04,38.82916862]
[1770056338431,7.38572084,104.13,104.04,38.82916862]
[1770056338934,134.5457,104.14,104.04,38.82916862]
[1770056339329,8.6503,104.12,104.05,8.6561]
[1770056339536,8.6503,104.12,104.06,38.87709037]
[1770056341228,134.5457,104.14,104.06,38.87709037]
[1770056341229,8.6492,104.14,104.06,38.87709037]
[1770056341432,134.4921,104.18,104.08,38.89912102]
[1770056341638,141.88252084,104.17,104.08,38.89912102]
[1770056342741,8.6486,104.15,104.08,47.55272102]
[1770056343133,134.5108,104.16,104.08,38.89912102]
[1770056343530,8.6497,104.13,104.08,38.89912102]
[1770056345234,8.6486,104.15,104.08,38.89912102]
[1770056345844,8.6488,104.14,104.08,38.89912102]
[1770056346738,8.6497,104.13,104.08,38.89912102]
[1770056347044,7.38572084,104.15,104.06,39.03677987]
[1770056347045,134.5382,104.14,104.06,39.03677987]
[1770056347242,7.38572084,104.13,104.06,39.03677987]
[1770056347943,7.38572084,104.13,104.0,134.7055]
[1770056347944,7.38572084,104.11,104.04,39.03677987]
[1770056348842,8.6528,104.09,104.04,39.03677987]
[1770056349047,7.38572084,104.09,104.02,39.05288181]
[1770056349344,7.38572084,104.11,104.02,39.05288181]
[1770056349538,7.38572084,104.11,104.04,39.05288181]
[1770056349739,141.93472084,104.13,104.04,39.05288181]
[1770056351243,134.5614,104.12,104.04,39.05288181]
[1770056351948,336.8,104.14,104.05,39.03784479]
[1770056352339,7.38572084,104.17,104.07,39.03784479]
[1770056352647,141.88622084,104.17,104.09,39.03784479]
[1770056352848,7.38572084,104.17,104.09,39.03784479]
[1770056353048,7.38572084,104.17,104.09,47.69054479]
[1770056354140,134.4885,104.18,104.11,39.1520112]
[1770056354544,8.647,104.16,104.11,39.1520112]
[1770056354845,134.4885,104.18,104.11,39.1520112]
[1770056355648,134.5104,104.16,104.09,39.1520112]
[1770056355854,7.38572084,104.15,104.09,39.1520112]
[1770056356948,141.90912084,104.15,104.09,39.1520112]
[1770056357551,8.6496,104.13,104.06,39.09214503]
[1770056358850,8.6496,104.13,104.06,47.74744503]
[1770056359548,479.54912084,104.15,104.06,39.09214503]
[1770056360056,337.64,104.15,104.06,39.09214503]
[1770056360254,479.64692084,104.17,104.06,39.09214503]
[1770056361257,8.6486,104.15,104.08,47.73970183]
[1770056361757,480.38692084,104.17,104.08,39.08620183]
[1770056361758,134.5126,104.16,104.08,39.08620183]
[1770056362057,141.91032084,104.15,104.08,39.08620183]
[1770056362353,8.6496,104.13,104.08,39.08620183]
[1770056363560,338.94,104.16,104.08,39.08620183]
[1770056364460,8.6479,104.15,104.08,47.73960183]
[1770056365053,8.6479,104.15,104.1,39.18973408]
[1770056365253,141.85712084,104.19,104.1,39.18973408]
[1770056365456,481.61712084,104.19,104.1,39.18973408]
[1770056365957,481.61712084,104.19,104.1,47.84153408]
[1770056366962,8.6471,104.16,104.1,39.18973408]
[1770056367356,8.6479,104.15,104.1,39.18973408]
[1770056367963,8.6467,104.17,104.1,47.84153408]
[1770056368660,8.6455,104.18,104.11,39.22955593]
[1770056369661,8.6447,104.19,104.13,39.22955593]
[1770056369962,7.38572084,104.21,104.13,39.22955593]
[1770056371459,8.6445,104.19,104.13,47.87895593]
[1770056373265,16.02902084,104.21,104.14,8.6478]
[1770056373470,340.14,104.22,104.15,39.13919173]
[1770056373864,7.38572084,104.23,104.15,39.13919173]
[1770056374569,8.6421,104.22,104.15,47.78689173]
[1770056374970,8.643,104.21,104.15,47.78689173]
[1770056375171,8.643,104.21,104.15,39.13919173]
[1770056375470,7.38572084,104.23,104.15,39.13919173]
[1770056375668,481.52712084,104.25,104.17,39.04325309]